bitfinex-derivatives/quotes_BTCF0:USTF0_20240910
["timestamp","ask_amount","ask_price","bid_price","bid_amount"]
[1725967639588,0.25370923,57163.0,57162.0,1.5261301]
[1725967640291,0.07906458,57163.0,57162.0,1.5261301]
[1725967640494,0.02538115,57163.0,57162.0,1.5261301]
[1725967647100,0.02538115,57163.0,57162.0,1.6135961]
[1725967654007,0.2000258,57163.0,57162.0,1.6135961]
[1725967654511,0.25371162,57163.0,57162.0,1.6135961]
[1725967655198,0.07906697,57163.0,57162.0,1.6135961]
[1725967655592,0.02538115,57163.0,57162.0,1.6135961]
[1725967655910,0.02538115,57163.0,57162.0,1.5666961]
[1725967658205,0.02538115,57163.0,57162.0,1.61915022]
[1725967659396,0.02538115,57163.0,57162.0,1.5666961]
[1725967661305,0.02538115,57163.0,57162.0,1.63658934]
[1725967661501,0.02538115,57163.0,57162.0,1.5666961]
[1725967661714,0.02538115,57163.0,57162.0,1.63658934]
[1725967661905,0.02538115,57163.0,57162.0,1.5666961]
[1725967662107,0.0009629,57167.0,57166.0,0.26238]
[1725967662300,0.00230863,57170.0,57166.0,0.18786]
[1725967662518,0.00202126,57172.0,57169.0,0.1]
[1725967662714,0.00202126,57172.0,57171.0,0.0004]
[1725967663016,0.00202126,57172.0,57171.0,0.787076]
[1725967663215,0.00202126,57172.0,57171.0,1.387076]
[1725967663814,0.00296758,57174.0,57173.0,0.174898]
[1725967664118,0.00296758,57174.0,57173.0,0.275298]
[1725967665313,0.01496758,57174.0,57173.0,0.275298]
[1725967665812,0.02596758,57174.0,57173.0,0.275298]
[1725967670611,0.06879205,57174.0,57173.0,0.275298]
[1725967671004,0.12246962,57174.0,57173.0,0.275298]
[1725967671615,0.16866962,57174.0,57173.0,0.275298]
[1725967677608,0.07216758,57174.0,57173.0,0.275298]
[1725967678715,0.07216758,57174.0,57173.0,0.175298]
[1725967678923,0.15961458,57174.0,57173.0,0.087849]
[1725967679125,0.1913641,57174.0,57173.0,0.087849]
[1725967679606,0.1039171,57174.0,57173.0,0.087849]
[1725967679813,0.1039171,57174.0,57173.0,0.187849]
[1725967683022,0.1913641,57174.0,57173.0,0.087849]
[1725967687422,0.2788111,57174.0,57173.0,0.0004]
[1725967688424,0.1913641,57174.0,57173.0,0.087849]
[1725967689429,0.2788111,57174.0,57173.0,0.0004]
[1725967689619,0.1913641,57174.0,57173.0,0.0004]
[1725967690024,0.2788111,57174.0,57173.0,0.0004]
[1725967692732,0.33249805,57174.0,57173.0,0.0004]
[1725967693317,0.33249804,57174.0,57173.0,0.0004]
[1725967693517,0.24505104,57174.0,57173.0,0.0004]
[1725967694316,0.41978499,57174.0,57173.0,0.0004]
[1725967694521,0.24505104,57174.0,57173.0,0.087849]
[1725967695629,0.24505104,57174.0,57173.0,0.0004]
[1725967697032,0.24505104,57174.0,57173.0,0.087849]
[1725967697220,0.28787946,57174.0,57173.0,0.087849]
[1725967697419,0.28787878,57174.0,57173.0,0.087849]
[1725967697722,0.19885104,57174.0,57173.0,0.087849]
[1725967697918,0.1451641,57174.0,57173.0,0.187849]
[1725967698117,0.0577171,57174.0,57173.0,0.187849]
[1725967698325,0.07964843,57174.0,57173.0,0.187849]
[1725967698629,0.21817492,57174.0,57173.0,0.187849]
[1725967698927,0.12247399,57174.0,57173.0,0.187849]
[1725967699125,0.31468133,57174.0,57173.0,0.187849]
[1725967699724,0.27185577,57174.0,57173.0,0.187849]
[1725967699923,0.07964843,57174.0,57173.0,0.187849]
[1725967700322,0.27185577,57174.0,57173.0,0.187849]
[1725967700625,0.21817492,57174.0,57173.0,0.187849]
[1725967700825,0.02596758,57174.0,57173.0,0.187849]
[1725967703429,0.02596758,57174.0,57173.0,0.24017935]
[1725967704440,0.02596758,57174.0,57173.0,0.187849]
[1725967706336,0.02596758,57174.0,57173.0,0.24017935]
[1725967707632,0.07964869,57174.0,57173.0,0.187849]
[1725967713149,0.16709569,57174.0,57173.0,0.187849]
[1725967713339,0.16709569,57174.0,57173.0,0.087849]
[1725967713938,0.16709569,57174.0,57173.0,0.0004]
[1725967714146,0.25454269,57174.0,57173.0,0.0004]
[1725967714539,0.25454269,57174.0,57173.0,0.087849]
[1725967714734,0.29737029,57174.0,57173.0,0.087849]
[1725967714936,0.20992329,57174.0,57173.0,0.187849]
[1725967715135,0.12247629,57174.0,57173.0,0.187849]
[1725967715840,0.02596758,57174.0,57173.0,0.187849]
[1725967717444,0.02596758,57174.0,57173.0,0.275298]
[1725967717847,0.02596758,57174.0,57173.0,0.34507471]
[1725967719531,0.02596758,57174.0,57173.0,0.37586449]
[1725967721637,0.02596758,57174.0,57173.0,0.25762571]
[1725967721838,0.02596758,57174.0,57173.0,0.187849]
[1725967722143,0.02596758,57174.0,57173.0,0.087849]
[1725967722336,0.11341458,57174.0,57173.0,0.087849]
[1725967722744,0.2099209,57174.0,57173.0,0.087849]
[1725967723043,0.40221577,57174.0,57173.0,0.087849]
[1725967723244,0.2099209,57174.0,57173.0,0.087849]
[1725967724341,0.20992108,57174.0,57173.0,0.087849]
[1725967730942,0.02596758,57174.0,57173.0,0.087849]
[1725967732541,0.02596758,57174.0,57173.0,0.14032263]
[1725967732745,0.02596758,57174.0,57173.0,0.087849]
[1725967734447,0.02596758,57174.0,57173.0,0.14032245]
[1725967735554,0.02596758,57174.0,57173.0,0.087849]
[1725967737747,0.12247721,57174.0,57173.0,0.087849]
[1725967742744,0.12247721,57174.0,57173.0,0.275298]
[1725967743455,0.12247268,57174.0,57173.0,0.275298]
[1725967745752,0.02596758,57174.0,57173.0,0.275298]
[1725967745962,0.02596758,57174.0,57173.0,0.362747]
[1725967746157,0.02596758,57174.0,57173.0,0.39366541]
[1725967747061,0.02596758,57174.0,57173.0,0.362747]
[1725967751060,0.02596758,57174.0,57173.0,0.262747]
[1725967755260,0.02596758,57174.0,57173.0,0.362747]
[1725967756465,0.02596758,57174.0,57173.0,0.43269967]
[1725967758561,0.02596758,57174.0,57173.0,0.362747]
[1725967760964,0.12246958,57174.0,57173.0,0.362747]
[1725967762466,0.29733185,57174.0,57173.0,0.362747]
[1725967762975,0.12246958,57174.0,57173.0,0.362747]
[1725967767974,0.02596758,57174.0,57173.0,0.58338024]
[1725967769167,0.02596758,57174.0,57173.0,0.49601538]
[1725967769370,0.02596758,57174.0,57173.0,0.49601588]
[1725967769769,0.02596758,57174.0,57173.0,0.58341446]
[1725967770176,0.02596758,57174.0,57173.0,0.49601588]
[1725967770582,0.02596758,57174.0,57173.0,0.58341217]
[1725967770766,0.02596758,57174.0,57173.0,0.49601588]
[1725967773875,0.02596758,57174.0,57173.0,0.58342261]
[1725967774182,0.02596758,57174.0,57173.0,0.45015373]
[1725967775386,0.02596758,57174.0,57173.0,0.362747]
[1725967776082,0.20082985,57174.0,57173.0,0.362747]
[1725967776584,0.02596758,57174.0,57173.0,0.362747]
[1725967776787,0.20085917,57174.0,57173.0,0.362747]
[1725967777485,0.2973649,57174.0,57173.0,0.362747]
[1725967777781,0.12247331,57174.0,57173.0,0.362747]
[1725967782986,0.00295042,57177.0,57175.0,0.087446]
[1725967783194,0.00295042,57177.0,57176.0,0.23367131]
[1725967784787,0.00295042,57177.0,57176.0,0.40855931]
[1725967784995,0.00295042,57177.0,57176.0,0.60083951]
[1725967785584,0.01695042,57177.0,57176.0,0.60183951]
[1725967785782,0.02895042,57177.0,57176.0,0.49699709]
[1725967786185,0.02895042,57177.0,57176.0,0.52813047]
[1725967787195,0.02895042,57177.0,57176.0,0.52913047]
[1725967787196,0.02395042,57177.0,57176.0,0.52913047]
[1725967790198,0.06677298,57177.0,57176.0,0.39586538]
[1725967790691,0.06677298,57177.0,57176.0,0.089844]
[1725967790893,0.25421698,57177.0,57169.0,0.0041]
[1725967791097,0.29238131,57172.0,57166.0,0.0045]
[1725967791297,0.087455,57169.0,57168.0,0.087457]
[1725967791496,0.087455,57169.0,57166.0,0.0004]
[1725967791497,0.13027756,57169.0,57166.0,0.0004]
[1725967791797,0.09650171,57168.0,57167.0,0.087458]
[1725967792695,0.19650171,57168.0,57167.0,0.087458]
[1725967792997,0.19950171,57168.0,57167.0,0.087458]
[1725967793395,0.20350171,57168.0,57167.0,0.087458]
[1725967794202,0.25070171,57168.0,57167.0,0.087458]
[1725967794892,0.33815871,57168.0,57167.0,0.087458]
[1725967795296,0.33818331,57168.0,57167.0,0.087458]
[1725967798103,0.27254024,57168.0,57167.0,0.087458]
[1725967801092,0.087461,57165.0,57164.0,0.087462]
[1725967801403,0.187461,57165.0,57164.0,0.087462]
[1725967801593,0.187461,57165.0,57164.0,0.15722531]
[1725967804197,0.187461,57165.0,57164.0,0.087462]
[1725967805693,0.087461,57165.0,57164.0,0.087462]
[1725967805895,0.087461,57165.0,57164.0,0.13975727]
[1725967806406,0.087461,57165.0,57164.0,0.087462]
[1725967806600,0.135961,57165.0,57164.0,0.087462]
[1725967810403,0.174926,57164.0,57163.0,0.05229527]
[1725967810610,0.174926,57164.0,57162.0,0.1015202]
[1725967810611,0.174928,57163.0,57162.0,0.1015202]
[1725967810910,0.262392,57163.0,57162.0,0.1015202]
[1725967811301,0.787192,57163.0,57162.0,0.1015202]
[1725967811497,1.387192,57163.0,57162.0,0.1015202]
[1725967811902,1.387192,57163.0,57162.0,0.0267202]
[1725967812806,1.299728,57163.0,57162.0,0.0267202]
[1725967813207,1.52801619,57163.0,57162.0,0.0267202]
[1725967814211,1.52801619,57163.0,57162.0,0.0287202]
[1725967814404,1.52801619,57163.0,57162.0,0.0307202]
[1725967814716,1.35343087,57163.0,57162.0,0.0307202]
[1725967815208,1.52774892,57163.0,57162.0,0.0307202]
[1725967815610,1.35343087,57163.0,57162.0,0.0307202]
[1725967815914,0.66596687,57163.0,57162.0,0.0307202]
[1725967816221,0.14116687,57163.0,57162.0,0.1181862]
[1725967817404,0.3154994,57163.0,57162.0,0.1181862]
[1725967818222,0.14116687,57163.0,57162.0,0.1181862]
[1725967819311,0.18400108,57163.0,57162.0,0.1181862]
[1725967819912,0.21776802,57163.0,57162.0,0.0307202]
[1725967820107,0.174928,57163.0,57162.0,0.0307202]
[1725967820715,1.299728,57163.0,57162.0,0.0307202]
[1725967821719,1.387192,57163.0,57162.0,0.0307202]
[1725967822022,1.387192,57163.0,57162.0,0.01397822]
[1725967822325,1.487192,57163.0,57162.0,0.01397822]
[1725967824530,1.887192,57163.0,57162.0,0.01397822]
[1725967824820,0.574928,57163.0,57162.0,0.01397822]
[1725967825024,0.187461,57166.0,57165.0,0.08746]
[1725967825218,0.187461,57166.0,57165.0,0.08786]
[1725967826526,0.188461,57166.0,57165.0,0.08786]
[1725967826919,0.189461,57166.0,57165.0,0.08786]
[1725967827824,0.276922,57166.0,57165.0,0.0004]
[1725967828524,0.33061984,57166.0,57165.0,0.0004]
[1725967829319,0.33062034,57166.0,57165.0,0.0004]
[1725967832425,0.41808134,57166.0,57165.0,0.0004]
[1725967832625,1.54288134,57166.0,57165.0,1e-08]
[1725967832931,0.174928,57163.0,57162.0,0.00997822]
[1725967833115,0.55582049,57163.0,57162.0,0.00997822]
[1725967833314,2.08062049,57163.0,57162.0,0.00997822]
[1725967833522,2.143366,57163.0,57162.0,0.00997822]
[1725967834019,2.25061318,57163.0,57162.0,0.01197822]
[1725967834229,2.0952122,57163.0,57162.0,0.01197822]
[1725967834432,1.6952122,57163.0,57162.0,0.01397822]
[1725967834733,1.62341903,57163.0,57162.0,0.01397822]
[1725967835532,1.399728,57163.0,57162.0,0.01397822]
[1725967840432,0.874928,57163.0,57162.0,0.01397822]
[1725967840631,1.399728,57163.0,57162.0,0.01397822]
[1725967840831,0.274928,57163.0,57162.0,0.01397822]
[1725967841327,0.874928,57163.0,57162.0,0.01397822]
[1725967841530,0.274928,57163.0,57162.0,0.01397822]
[1725967841725,0.187464,57163.0,57162.0,0.01397822]
[1725967842521,0.187464,57163.0,57162.0,0.10144422]
[1725967849038,0.187464,57163.0,57162.0,0.01397822]
[1725967850437,0.2411659,57163.0,57162.0,0.01397822]
[1725967851627,0.3286299,57163.0,57162.0,0.01397822]
[1725967851938,0.2411659,57163.0,57162.0,0.01397822]
[1725967852335,0.3286299,57163.0,57162.0,0.01397822]
[1725967853030,0.2411659,57163.0,57162.0,0.01397822]
[1725967853848,0.187464,57163.0,57162.0,0.01397822]
[1725967855334,0.274928,57163.0,57162.0,0.01397822]
[1725967856243,1.487192,57163.0,57162.0,0.01397822]
[1725967856438,0.174932,57162.0,57161.0,0.00176438]
[1725967856639,0.262407,57160.0,57159.0,0.00524312]
[1725967856840,0.262407,57160.0,57157.0,0.00327941]
[1725967856841,0.08747,57159.0,57154.0,0.00790945]
[1725967857039,0.1,57155.0,57154.0,0.00380945]
[1725967857240,0.674954,57155.0,57154.0,0.00380945]
[1725967857445,0.274954,57155.0,57154.0,0.00380945]
[1725967859645,0.288954,57155.0,57154.0,0.00480945]
[1725967859847,0.301954,57155.0,57154.0,0.00580945]
[1725967860442,0.33392969,57155.0,57154.0,0.00580945]
[1725967865738,0.38764202,57155.0,57154.0,0.00580945]
[1725967870450,0.38764473,57155.0,57154.0,0.00580945]
[1725967871454,0.47512173,57155.0,57154.0,0.00580945]
[1725967872747,0.42140669,57155.0,57154.0,0.00580945]
[1725967876558,0.42140669,57155.0,57154.0,0.00556807]
[1725967877362,0.262434,57154.0,57153.0,1e-08]
[1725967878755,0.275434,57154.0,57153.0,0.00100001]
[1725967879058,0.275434,57154.0,57153.0,0.00200001]
[1725967879059,0.287434,57154.0,57153.0,0.00200001]
[1725967880658,0.262452,57150.0,57149.0,0.00664954]
[1725967880860,0.41617147,57150.0,57149.0,0.00664954]
[1725967881957,0.42517147,57150.0,57149.0,0.00764954]
[1725967882157,0.43317147,57150.0,57149.0,0.00764954]
[1725967884255,0.43317147,57150.0,57147.0,0.01434722]
[1725967884256,0.174972,57149.0,57147.0,0.01434722]
[1725967884460,0.087487,57148.0,57145.0,0.0064835]
[1725967884757,0.32869747,57147.0,57145.0,0.0064835]
[1725967885763,0.32869896,57147.0,57145.0,0.0064835]
[1725967885956,0.39146974,57147.0,57145.0,0.0064835]
[1725967886164,0.32869896,57147.0,57145.0,0.0064835]
[1725967886364,0.3336989,57147.0,57145.0,0.0064835]
[1725967887859,0.279978,57147.0,57146.0,0.00665954]
[1725967888064,0.284978,57147.0,57146.0,0.00665954]
[1725967888869,0.31604406,57147.0,57146.0,0.00665954]
[1725967896470,0.40353306,57147.0,57146.0,0.00665954]
[1725967898568,0.40353306,57147.0,57146.0,0.001]
[1725967898770,0.17499,57143.0,57142.0,0.0041]
[1725967898973,0.087499,57140.0,57138.0,0.1428]
[1725967899169,0.187499,57140.0,57138.0,0.1428]
[1725967899773,0.087501,57139.0,57138.0,0.1428]
[1725967900275,0.087501,57139.0,57138.0,0.1468]
[1725967900973,0.0041,57146.0,57138.0,0.1468]
[1725967901167,0.0041,57146.0,57145.0,0.0004]
[1725967901168,0.08749,57146.0,57145.0,0.0004]
[1725967901371,0.18749,57146.0,57145.0,0.0004]
[1725967901877,0.1,57146.0,57145.0,0.087892]
[1725967902068,0.1,57146.0,57145.0,0.0004]
[1725967902261,0.0041,57153.0,57145.0,1.12536]
[1725967902461,0.0041,57156.0,57152.0,0.1004]
[1725967902665,0.10725503,57159.0,57155.0,0.1]
[1725967902875,0.05370541,57158.0,57155.0,0.1004]
[1725967903079,0.05370541,57157.0,57156.0,0.087475]
[1725967903465,0.05370541,57157.0,57156.0,1.212355]
[1725967903775,0.05370541,57157.0,57156.0,0.612355]
[1725967903979,0.05370541,57157.0,57156.0,1.212355]
[1725967905577,0.05370541,57157.0,57156.0,1.215355]
[1725967905974,0.05370541,57157.0,57156.0,1.219355]
[1725967906571,0.05370541,57157.0,57156.0,1.220355]
[1725967906572,0.19177281,57157.0,57156.0,1.220355]
[1725967906772,0.19177281,57157.0,57156.0,0.094475]
[1725967907077,0.24547822,57157.0,57156.0,0.094475]
[1725967907374,0.24547822,57157.0,57156.0,1.219355]
[1725967907575,0.05370541,57157.0,57156.0,0.619355]
[1725967908074,0.05370541,57157.0,57156.0,1.219355]
[1725967908285,0.05370541,57157.0,57156.0,1.217355]
[1725967908477,0.05370541,57157.0,57156.0,1.216355]
[1725967908776,0.05370541,57157.0,57156.0,1.30383]
[1725967908979,0.0041,57164.0,57160.0,0.087469]
[1725967908980,0.19164139,57161.0,57160.0,0.087469]
[1725967909172,0.05369663,57161.0,57160.0,0.334938]
[1725967909372,0.2279408,57161.0,57160.0,1.460178]
[1725967909679,0.05369663,57161.0,57160.0,1.460178]
[1725967910177,0.05569663,57161.0,57160.0,1.460178]
[1725967910777,0.002,57161.0,57160.0,1.460178]
[1725967911672,0.002,57161.0,57160.0,1.49242142]
[1725967911976,0.005,57161.0,57160.0,1.49242142]
[1725967912480,0.003,57161.0,57160.0,1.49242142]
[1725967912676,0.005,57161.0,57160.0,1.49242142]
[1725967913071,0.002,57161.0,57160.0,1.49342142]
[1725967915282,0.0041,57167.0,57166.0,0.08746]
[1725967915479,0.03137675,57169.0,57166.0,0.08746]
[1725967915480,0.03137675,57169.0,57168.0,0.087457]
[1725967915683,0.16,57170.0,57169.0,0.087455]
[1725967915885,0.16,57170.0,57169.0,0.087855]
[1725967916382,0.16,57170.0,57169.0,0.087455]
[1725967917583,0.19163283,57170.0,57169.0,0.087455]
[1725967918384,0.21063283,57170.0,57169.0,0.089455]
[1725967919677,0.19163283,57170.0,57169.0,0.087455]
[1725967919874,0.21263283,57170.0,57169.0,0.089455]
[1725967921483,0.20963283,57170.0,57169.0,0.089455]
[1725967922989,0.20263283,57170.0,57169.0,0.088455]
[1725967923183,0.21263283,57170.0,57169.0,0.089455]
[1725967924481,0.26632448,57170.0,57169.0,0.089455]
[1725967924687,0.10332448,57170.0,57169.0,0.089455]
[1725967925176,0.09532448,57170.0,57169.0,0.088455]
[1725967925373,0.09532448,57170.0,57169.0,0.089455]
[1725967925374,0.10632448,57170.0,57169.0,0.089455]
[1725967925577,0.05263283,57170.0,57169.0,0.089455]
[1725967928186,0.021,57170.0,57169.0,0.364365]
[1725967929286,0.011,57170.0,57169.0,0.17591]
[1725967929488,0.0691,57170.0,57169.0,0.17691]
[1725967929688,0.1691,57170.0,57169.0,0.17691]
[1725967930284,0.1591,57170.0,57169.0,0.17591]
[1725967930484,0.1661,57170.0,57169.0,0.17691]
[1725967931889,0.1661,57170.0,57169.0,0.17591]
[1725967932091,0.1691,57170.0,57169.0,0.17691]
[1725967934288,0.2172,57170.0,57169.0,0.17691]
[1725967937679,0.1172,57170.0,57169.0,0.17691]
[1725967940492,0.17088888,57170.0,57169.0,0.17691]
[1725967943283,0.12278887,57170.0,57169.0,0.17691]
[1725967943487,0.07468887,57170.0,57169.0,0.27691]
[1725967943888,0.07468887,57170.0,57169.0,1.489125]
[1725967944795,0.07468887,57170.0,57169.0,0.964365]
[1725967944987,0.07468887,57170.0,57169.0,1.489125]
[1725967945183,0.22717704,57175.0,57174.0,0.262341]
[1725967945387,0.00295042,57177.0,57176.0,0.174888]
[1725967945594,0.00295042,57177.0,57176.0,0.175288]
[1725967946594,0.01695042,57177.0,57176.0,0.176288]
[1725967947793,0.01695042,57177.0,57176.0,0.20732198]
[1725967948792,0.01695042,57177.0,57176.0,0.20832198]
[1725967948793,0.01895042,57177.0,57176.0,0.20832198]
[1725967952003,0.01895042,57177.0,57176.0,0.29576598]
[1725967955109,0.01895042,57177.0,57176.0,1.42044598]
[1725967955408,0.01895042,57177.0,57176.0,1.50788998]
[1725967955409,4.2e-07,57177.0,57176.0,1.50788998]
[1725967955612,0.06188636,57182.0,57180.0,0.087438]
[1725967955807,0.05809543,57181.0,57180.0,0.187838]
[1725967956007,0.05809543,57181.0,57180.0,1.487354]
[1725967956713,0.06909543,57181.0,57180.0,1.488354]
[1725967957902,0.20716849,57181.0,57180.0,1.488354]
[1725967958098,0.26083941,57181.0,57180.0,1.488354]
[1725967958701,0.06909543,57181.0,57180.0,1.488354]
[1725967958898,0.07709543,57181.0,57180.0,1.489354]
[1725967960509,4.3e-07,57181.0,57180.0,1.576792]
[1725967960711,0.06277488,57185.0,57184.0,0.087432]
[1725967960915,0.00688508,57188.0,57185.0,0.087431]
[1725967961104,0.05852341,57186.0,57185.0,1.258431]
[1725967961310,0.05852341,57186.0,57185.0,1.258831]
[1725967961511,0.05852341,57186.0,57185.0,1.433293]
[1725967961910,4.1e-07,57186.0,57185.0,1.527324]
[1725967962211,2.6e-07,57192.0,57191.0,0.174842]
[1725967962418,8.6e-07,57193.0,57192.0,0.78682]
[1725967962809,8.6e-07,57193.0,57192.0,1.38682]
[1725967963011,8.6e-07,57193.0,57192.0,1.41877883]
[1725967963815,8.6e-07,57193.0,57192.0,1.41977883]
[1725967965519,0.00100086,57193.0,57192.0,1.42077883]
[1725967967225,0.00100086,57193.0,57192.0,1.52077883]
[1725967970915,8.6e-07,57193.0,57192.0,1.51977883]
[1725967971121,0.00100086,57193.0,57192.0,1.52077883]
[1725967973520,0.05465595,57193.0,57192.0,1.52077883]
[1725967975633,0.05465595,57193.0,57192.0,0.92077883]
[1725967976429,0.05565595,57193.0,57192.0,0.91877883]
[1725967977125,0.05565595,57193.0,57192.0,1.51877883]
[1725967978335,0.00787522,57195.0,57192.0,0.73195883]
[1725967978538,0.04337215,57202.0,57201.0,0.349624]
[1725967978828,0.0485,57212.0,57211.0,0.262173]
[1725967979029,0.0485,57212.0,57211.0,0.362173]
[1725967979231,0.0485,57212.0,57211.0,0.362573]
[1725967979433,0.0485,57212.0,57211.0,0.274782]
[1725967979733,0.0485,57212.0,57211.0,0.187391]
[1725967980521,0.0485,57212.0,57211.0,0.188391]
[1725967981137,0.0485,57212.0,57211.0,0.275782]
[1725967982228,0.0485,57212.0,57211.0,0.276782]
[1725967984433,0.0485,57212.0,57211.0,0.089391]
[1725967985633,0.0485,57212.0,57211.0,0.189391]
[1725967986034,0.0485,57212.0,57211.0,0.089391]
[1725967986230,0.0485,57212.0,57211.0,0.189391]
[1725967986431,0.0485,57212.0,57211.0,0.276782]
[1725967986631,0.0485,57212.0,57211.0,0.364173]
[1725967987035,0.0485,57212.0,57211.0,0.276782]
[1725967987429,0.0485,57212.0,57211.0,0.364173]
[1725967987735,0.0485,57212.0,57211.0,0.276782]
[1725967988138,0.0485,57212.0,57211.0,0.364173]
[1725967988340,0.0495,57216.0,57215.0,0.262155]
[1725967988544,0.0495,57216.0,57215.0,0.362555]
[1725967988842,0.0495,57216.0,57215.0,1.486875]
[1725967989740,0.0096,57218.0,57217.0,0.262146]
[1725967990143,0.0096,57218.0,57217.0,0.422546]
[1725967990834,0.0096,57218.0,57217.0,0.087782]
[1725967992049,0.1696,57218.0,57217.0,0.0004]
[1725967992738,0.7813,57218.0,57217.0,0.0004]
[1725967992936,0.25698,57218.0,57217.0,0.0004]
[1725967993244,0.83494149,57218.0,57217.0,0.0004]
[1725967993440,0.89762114,57218.0,57217.0,0.0004]
[1725967993744,1.49762114,57218.0,57217.0,0.0004]
[1725967993948,1.41024114,57218.0,57208.0,0.0082]
[1725967994136,0.087394,57209.0,57208.0,0.0041]
[1725967994446,0.087402,57204.0,57203.0,0.087403]
[1725967994637,0.19159344,57204.0,57195.0,0.0041]
[1725967994952,0.16,57206.0,57203.0,0.087403]
[1725967995243,0.05365608,57205.0,57200.0,0.087407]
[1725967995446,0.05365608,57204.0,57200.0,0.087407]
[1725967995746,0.16,57202.0,57200.0,0.087407]
[1725967995942,0.05365608,57201.0,57200.0,0.087407]
[1725967996553,0.05365608,57201.0,57196.0,0.087414]
[1725967996744,0.087408,57200.0,57191.0,0.37487807]
[1725967996939,0.05365997,57199.0,57198.0,0.087409]
[1725967997135,0.10225997,57199.0,57198.0,0.087409]
[1725967999547,0.10225997,57199.0,57198.0,0.088409]
[1725968001144,0.0486,57199.0,57198.0,0.088409]
[1725968001654,0.136009,57199.0,57198.0,0.088409]
[1725968001843,0.296009,57199.0,57198.0,0.001]
[1725968002550,0.820489,57199.0,57198.0,0.001]
[1725968003950,0.296009,57199.0,57198.0,0.001]
[1725968004947,1.420489,57199.0,57198.0,0.001]
[1725968005451,1.45248175,57199.0,57198.0,0.001]
[1725968007248,1.53989075,57199.0,57198.0,0.001]
[1725968007449,1.53989075,57199.0,57191.0,0.0041]
[1725968007450,0.08742,57192.0,57191.0,0.091521]
[1725968007655,0.08742,57192.0,57191.0,0.087421]
[1725968007853,0.08742,57192.0,57183.0,0.0041]
[1725968007854,0.087427,57188.0,57187.0,0.087427]
[1725968008052,0.247427,57188.0,57187.0,0.087427]
[1725968008552,1.372027,57188.0,57182.0,0.087434]
[1725968008747,0.0461,57187.0,57175.0,0.1641]
[1725968008947,0.087435,57183.0,57182.0,0.087433]
[1725968010150,0.03202006,57185.0,57178.0,0.16]
[1725968010151,0.03202006,57185.0,57184.0,0.087432]
[1725968010454,0.03202006,57185.0,57184.0,0.087832]
[1725968010455,0.087431,57185.0,57184.0,0.087832]
[1725968011555,0.087431,57185.0,57184.0,0.096832]
[1725968012256,0.07727296,57187.0,57186.0,0.087429]
[1725968012456,0.07727296,57187.0,57186.0,0.087829]
[1725968013547,0.07727296,57187.0,57186.0,0.093829]
[1725968013947,0.0928,57191.0,57186.0,0.1664]
[1725968014253,0.0477,57191.0,57190.0,0.0004]
[1725968014844,0.134717,57194.0,57190.0,0.087823]
[1725968015045,0.0473,57194.0,57193.0,0.0004]
[1725968015251,0.0473,57194.0,57193.0,0.087818]
[1725968016559,0.0483,57194.0,57193.0,0.087818]
[1725968017254,0.07979745,57194.0,57193.0,0.087818]
[1725968017652,0.16721445,57194.0,57193.0,0.087818]
[1725968030262,0.22088467,57194.0,57193.0,0.087818]
[1725968031063,0.17358467,57194.0,57193.0,0.087818]
[1725968032258,0.08616767,57194.0,57193.0,0.087818]
[1725968032859,0.08616625,57194.0,57193.0,0.087818]
[1725968035265,0.17358325,57194.0,57193.0,0.087818]
[1725968035456,0.17358325,57194.0,57193.0,0.0004]
[1725968036265,0.17358325,57194.0,57184.0,0.0082]
[1725968036266,1.21068625,57194.0,57184.0,0.0082]
[1725968036467,0.08743,57188.0,57187.0,0.087426]
[1725968036660,0.3010988,57188.0,57187.0,0.087426]
[1725968038367,0.24743,57188.0,57187.0,0.092426]
[1725968039278,0.24743,57188.0,57187.0,0.097426]
[1725968040459,0.24743,57188.0,57187.0,0.01]
[1725968040460,1.45946,57188.0,57187.0,0.01]
[1725968040663,1.45946,57188.0,57178.0,0.0082]
[1725968040664,0.08744,57179.0,57178.0,0.0082]
[1725968040963,0.16,57179.0,57174.0,0.087447]
[1725968041164,0.0938,57178.0,57174.0,0.087447]
[1725968041371,0.08745,57173.0,57168.0,0.1018033]
[1725968041567,0.16,57170.0,57166.0,0.37487435]
[1725968041865,0.16,57170.0,57169.0,0.087455]
[1725968041866,0.247455,57170.0,57169.0,0.087455]
[1725968042572,0.16,57170.0,57169.0,0.087455]
[1725968042876,0.08745,57173.0,57172.0,0.087451]
[1725968043176,0.08745,57173.0,57172.0,0.0004]
[1725968043177,0.087449,57173.0,57172.0,0.0004]
[1725968044475,0.087449,57173.0,57172.0,0.0024]
[1725968044675,0.087449,57173.0,57172.0,0.089851]
[1725968045178,0.087449,57173.0,57172.0,0.0024]
[1725968045676,0.087449,57173.0,57172.0,0.0044]
[1725968046474,0.087449,57173.0,57172.0,0.091851]
[1725968046878,0.087449,57173.0,57172.0,0.0044]
[1725968050375,0.087449,57173.0,57172.0,0.091851]
[1725968054377,0.16,57177.0,57172.0,0.0044]
[1725968054579,0.087444,57177.0,57176.0,0.087843]
[1725968054875,0.087444,57177.0,57176.0,0.0004]
[1725968055079,0.247444,57177.0,57176.0,0.0004]
[1725968057176,0.087444,57177.0,57176.0,0.0004]
[1725968057383,0.07772331,57178.0,57177.0,0.087443]
[1725968057578,0.07772331,57178.0,57177.0,0.087843]
[1725968057776,0.03092331,57178.0,57177.0,0.087843]
[1725968057978,0.087439,57180.0,57179.0,0.08744]
[1725968058186,0.087439,57180.0,57179.0,0.08784]
[1725968058586,0.1191097,57180.0,57179.0,0.08784]
[1725968059080,0.0316707,57180.0,57179.0,0.08784]
[1725968059283,0.003,57180.0,57179.0,0.08784]
[1725968060984,0.05667889,57180.0,57179.0,0.08784]
[1725968061787,0.05367889,57180.0,57179.0,0.08784]
[1725968062090,0.16,57182.0,57179.0,0.0124]
[1725968062091,0.05367894,57181.0,57179.0,0.0124]
[1725968062281,0.05367894,57180.0,57179.0,0.0124]
[1725968062479,0.05367894,57180.0,57179.0,0.012]
[1725968062675,0.27846519,57182.0,57181.0,0.087437]
[1725968062875,0.33214411,57182.0,57181.0,0.087837]
[1725968065189,0.24470811,57182.0,57181.0,0.087837]
[1725968065393,0.24770811,57182.0,57181.0,0.087837]